bitfinex/quotes_BTCUSD_20260221
["timestamp","ask_amount","ask_price","bid_price","bid_amount"]
[1771650124289,0.07362338,67914.0,67910.0,0.00038]
[1771650126417,0.07362338,67914.0,67905.0,0.0738521]
[1771650127514,0.07362174,67915.0,67906.0,0.07363027]
[1771650128971,0.07362035,67916.0,67907.0,0.07376317]
[1771650131107,0.07362035,67916.0,67908.0,0.02269899]
[1771650131467,0.0002,67914.0,67908.0,0.02269899]
[1771650137019,0.0002,67914.0,67908.0,0.09632743]
[1771650139106,0.00011683,67919.0,67911.0,0.07362474]
[1771650140535,0.07373405,67919.0,67911.0,0.07362474]
[1771650144950,0.07393405,67919.0,67911.0,0.07362474]
[1771650148812,0.07393405,67919.0,67912.0,0.09867775]
[1771650150157,0.07361833,67918.0,67912.0,0.09867775]
[1771650150862,0.07361833,67918.0,67910.0,0.07362648]
[1771650151441,0.07361833,67918.0,67911.0,0.00022]
[1771650152952,0.07361833,67918.0,67911.0,0.00122]
[1771650153158,0.07393397,67919.0,67911.0,0.07484544]
[1771650154819,0.073345,67919.0,67911.0,0.07484544]
[1771650155221,0.0736182,67918.0,67911.0,0.00122]
[1771650155372,0.0736182,67918.0,67911.0,0.00061018]
[1771650155574,0.07361931,67917.0,67911.0,0.00061018]
[1771650155778,0.07362077,67916.0,67911.0,0.00061018]
[1771650156497,0.07361931,67917.0,67911.0,0.00061018]
[1771650162300,0.29466869,67919.0,67911.0,0.00061018]
[1771650162529,0.07361927,67917.0,67911.0,0.00061018]
[1771650162940,0.07362126,67916.0,67911.0,0.00061018]
[1771650166838,0.07381756,67919.0,67911.0,0.00061018]
[1771650166969,0.0001332,67933.0,67912.0,0.14086534]
[1771650166970,0.00016,67930.0,67912.0,0.14086534]
[1771650167163,0.07361072,67925.0,67917.0,0.09867776]
[1771650167366,0.07361072,67925.0,67918.0,0.09867776]
[1771650167780,0.0736117,67924.0,67918.0,0.09867776]
[1771650171402,0.0736117,67924.0,67918.0,0.09967776]
[1771650171632,0.0736117,67924.0,67918.0,0.09867776]
[1771650171858,0.07361072,67925.0,67918.0,0.09867776]
[1771650172059,0.0002,67924.0,67918.0,0.09967776]
[1771650172256,0.07381172,67924.0,67918.0,0.09967776]
[1771650173459,0.07381172,67924.0,67918.0,0.09867776]
[1771650173960,0.07381172,67924.0,67918.0,0.09967776]
[1771650174112,0.07381172,67924.0,67918.0,0.09867776]
[1771650174113,0.0002,67924.0,67918.0,0.09867776]
[1771650174314,0.07381188,67924.0,67918.0,0.09967776]
[1771650174757,0.07381188,67924.0,67918.0,0.09963315]
[1771650175168,0.07381188,67924.0,67918.0,0.09863315]
[1771650176466,0.07381188,67924.0,67918.0,0.09963315]
[1771650176668,0.07381188,67924.0,67918.0,0.09863315]
[1771650177184,0.07381188,67924.0,67918.0,0.09963315]
[1771650178441,0.07381188,67924.0,67918.0,0.09863315]
[1771650178642,0.07381188,67924.0,67918.0,0.09885315]
[1771650178887,0.07381188,67924.0,67918.0,0.09880854]
[1771650182143,0.0002,67924.0,67918.0,0.09880854]
[1771650185854,0.0002,67924.0,67918.0,0.17242658]
[1771650188127,0.0002,67924.0,67918.0,0.09980854]
[1771650190037,0.0002,67924.0,67918.0,0.09880854]
[1771650192287,0.0002,67924.0,67918.0,0.10880854]
[1771650192454,0.0002,67924.0,67918.0,0.10876393]
[1771650192658,0.0002,67924.0,67918.0,0.10976393]
[1771650195503,0.0002,67924.0,67918.0,0.10876393]
[1771650199430,0.07381174,67924.0,67918.0,0.10876393]
[1771650199956,0.07361636,67920.0,67913.0,9e-05]
[1771650204189,0.07361636,67920.0,67913.0,0.00031]
[1771650204544,0.07381636,67920.0,67913.0,0.00031]
[1771650207593,0.07361713,67919.0,67913.0,0.00031]
[1771650207826,0.07381636,67920.0,67913.0,0.00031]
[1771650209456,0.07381636,67920.0,67913.0,0.00016333]
[1771650210653,0.07361716,67919.0,67913.0,0.00016333]
[1771650210839,0.07381636,67920.0,67913.0,0.00016333]
[1771650211828,0.07361832,67918.0,67911.0,0.00061018]
[1771650212374,0.07361927,67917.0,67911.0,0.00046353]
[1771650213105,0.07361927,67917.0,67911.0,0.00017026]
[1771650213601,0.07361927,67917.0,67913.0,0.00022]
[1771650215129,0.0736185,67918.0,67913.0,0.00022]
[1771650215618,0.07381682,67920.0,67913.0,0.00022]
[1771650216390,0.07381682,67920.0,67913.0,7.334e-05]
[1771650216982,0.07381682,67920.0,67911.0,0.07357571]
[1771650218847,0.0736171,67919.0,67911.0,0.07357571]
[1771650219474,0.07381638,67920.0,67911.0,0.07357571]
[1771650219830,0.07381638,67920.0,67911.0,0.07379571]
[1771650220171,0.07381638,67920.0,67912.0,0.07362455]
[1771650221870,0.29446841,67919.0,67908.0,0.09868491]
[1771650222080,0.42342705,67919.0,67907.0,0.07384945]
[1771650222466,0.0736209,67916.0,67907.0,0.07384945]
[1771650222918,0.07362145,67915.0,67907.0,0.07384945]
[1771650225074,0.07362145,67915.0,67907.0,0.07370283]
[1771650230726,0.07362145,67915.0,67907.0,0.07296933]
[1771650231546,0.07362074,67916.0,67907.0,0.07296933]
[1771650231746,0.07362074,67916.0,67908.0,0.073629]
[1771650231948,0.07362074,67916.0,67906.0,0.07397497]
[1771650232464,0.07362074,67916.0,67906.0,0.17266453]
[1771650232704,0.07362074,67916.0,67907.0,0.07363011]
[1771650233134,0.07362074,67916.0,67907.0,0.07385011]
[1771650233347,0.07361818,67918.0,67906.0,0.09903336]
[1771650233540,0.07362455,67913.0,67906.0,0.09903336]
[1771650233761,0.0736256,67912.0,67906.0,0.0003438]
[1771650234780,0.07362758,67910.0,67906.0,0.0003438]
[1771650235607,0.07362758,67910.0,67899.0,0.0003438]
[1771650235608,0.07363483,67903.0,67899.0,0.0003438]
[1771650235809,0.07363553,67902.0,67897.0,0.00022]
[1771650236742,0.07363483,67903.0,67897.0,0.00022]
[1771650237353,0.07363576,67902.0,67897.0,0.00022]
[1771650237763,0.07363576,67902.0,67893.0,0.07386316]
[1771650237954,0.07363576,67902.0,67893.0,0.00022]
[1771650238165,0.07363483,67903.0,67894.0,0.07364391]
[1771650238316,0.07363551,67904.0,67894.0,0.07364391]
[1771650238317,0.07363555,67902.0,67894.0,0.07364391]
[1771650238698,0.0736348,67903.0,67894.0,0.07364391]
[1771650238993,0.07363551,67904.0,67893.0,0.07386324]
[1771650238994,0.07363996,67898.0,67893.0,0.00022]
[1771650239193,0.0736398,67899.0,67893.0,0.00022]
[1771650239325,0.07363772,67900.0,67893.0,0.00022]
[1771650239531,0.07363772,67900.0,67897.0,0.00022]
[1771650239924,0.07363676,67901.0,67897.0,0.00022]
[1771650240118,0.07363676,67901.0,67897.0,0.00033683]
[1771650240733,0.07363538,67904.0,67897.0,0.00033683]
[1771650241777,0.12856878,67908.0,67897.0,0.00033683]
[1771650241977,0.07363205,67906.0,67897.0,0.07397752]
[1771650242180,0.12856878,67909.0,67897.0,0.00033683]
[1771650242378,0.07363381,67904.0,67897.0,0.00033683]
[1771650242998,0.2945014,67912.0,67897.0,0.00033683]
[1771650242999,0.00016,67910.0,67898.0,0.23098612]
[1771650243258,0.07378715,67910.0,67902.0,0.09870294]
[1771650244526,0.07378715,67910.0,67902.0,0.17233842]
[1771650245233,0.00016,67910.0,67906.0,0.07363108]
[1771650245432,0.0737449,67916.0,67907.0,0.09870192]
[1771650245793,0.07362174,67915.0,67907.0,0.09870192]
[1771650245997,0.00036,67920.0,67907.0,0.09870192]
[1771650245998,0.00036,67920.0,67912.0,0.09870192]
[1771650246214,0.00036,67920.0,67913.0,0.09870192]
[1771650246215,0.07397603,67920.0,67913.0,0.09870192]
[1771650246673,0.00036,67920.0,67913.0,0.09870192]
[1771650246847,0.0002,67916.0,67913.0,0.09870192]
[1771650248374,0.0002,67916.0,67913.0,0.09970192]
[1771650250140,0.0002,67916.0,67913.0,0.09870192]
[1771650250327,0.0002,67916.0,67913.0,0.09970192]
[1771650250530,0.0002,67916.0,67913.0,0.09870192]
[1771650250955,0.0002,67916.0,67913.0,0.09970192]
[1771650251157,0.0002,67916.0,67913.0,0.09870192]
[1771650251566,0.0002,67916.0,67913.0,0.09970192]
[1771650253033,0.0002,67916.0,67913.0,0.09870192]
[1771650253218,0.07397629,67920.0,67913.0,0.09870192]
[1771650253921,0.0002,67916.0,67913.0,0.09870192]
[1771650254289,0.07397629,67920.0,67913.0,0.09870192]
[1771650259784,0.07361738,67919.0,67913.0,0.09870192]
[1771650261000,0.07361738,67919.0,67913.0,0.09892192]
[1771650268237,0.07381738,67919.0,67913.0,0.09892192]
[1771650268925,0.0002,67919.0,67913.0,0.09892192]
[1771650269836,0.07381733,67919.0,67913.0,0.09892192]
[1771650272910,0.0002,67919.0,67913.0,0.09892192]
[1771650273087,0.0002838,67930.0,67913.0,0.09892192]
[1771650273289,0.07361259,67924.0,67916.0,0.09868491]
[1771650274475,0.07361314,67923.0,67916.0,0.09868491]
[1771650274885,0.0734659,67923.0,67916.0,0.09868491]
[1771650275285,0.0002,67920.0,67916.0,0.09868491]
[1771650276601,0.0002,67920.0,67917.0,0.07361845]
[1771650276814,0.0002,67920.0,67917.0,0.1723029]
[1771650277025,0.0002,67920.0,67917.0,0.09868445]
[1771650278095,0.07381371,67924.0,67917.0,0.09868445]
[1771650279363,0.07381371,67924.0,67917.0,0.09968445]
[1771650279565,0.07381371,67924.0,67917.0,0.09868445]
[1771650279930,0.07381371,67924.0,67917.0,0.09968445]
[1771650280157,0.07381371,67924.0,67917.0,0.09868445]
[1771650281477,0.0004018,67924.0,67917.0,0.09868445]
[1771650282441,0.0740135,67924.0,67917.0,0.09868445]
[1771650283098,0.0004018,67924.0,67917.0,0.09868445]
[1771650284479,0.07401353,67924.0,67917.0,0.09868445]
[1771650291202,0.07361284,67923.0,67917.0,0.09868445]
[1771650293927,0.07361284,67923.0,67917.0,0.09968445]
[1771650294992,0.07381284,67923.0,67917.0,0.09968445]
[1771650296029,0.07381284,67923.0,67917.0,0.09868445]
[1771650296340,0.07381284,67923.0,67917.0,0.09968445]
[1771650296570,0.07381284,67923.0,67917.0,0.09868445]
[1771650298787,0.07381284,67923.0,67906.0,0.0989028]
[1771650298788,0.13872889,67922.0,67906.0,0.0989028]
[1771650298962,0.07362334,67914.0,67906.0,0.0989028]
[1771650299143,0.07362334,67914.0,67906.0,0.17253323]
[1771650299346,0.07362334,67914.0,67909.0,0.0989028]
[1771650300816,0.07362391,67913.0,67909.0,0.0989028]
[1771650302563,0.07362334,67914.0,67909.0,0.0989028]
[1771650308067,0.07362111,67916.0,67909.0,0.0989028]
[1771650308270,0.0736171,67919.0,67907.0,0.00022]
[1771650308422,0.1295337,67917.0,67902.0,0.1771]
[1771650308625,0.07362774,67910.0,67902.0,0.1771]
[1771650308821,0.07362774,67910.0,67903.0,0.02467446]
[1771650309026,0.07362534,67912.0,67903.0,0.02467446]
[1771650309709,0.07362657,67911.0,67903.0,0.02467446]
[1771650312902,0.07362657,67911.0,67894.0,0.17688]
[1771650312903,0.07363947,67899.0,67891.0,0.0004229]
[1771650313057,0.00016,67910.0,67891.0,0.0004229]
[1771650313058,0.07363975,67900.0,67891.0,0.07406955]
[1771650313265,0.07363959,67899.0,67891.0,0.0004229]
[1771650313728,0.07347826,67899.0,67891.0,0.0004229]
[1771650315867,0.07347826,67899.0,67896.0,0.00022]
[1771650316773,0.07402968,67900.0,67896.0,0.00022]
[1771650316774,0.00038993,67900.0,67896.0,0.00022]
[1771650316975,0.07364168,67897.0,67891.0,0.0004229]
[1771650317413,0.00038993,67900.0,67891.0,0.0004229]
[1771650317564,0.0740277,67900.0,67892.0,0.07364589]
[1771650317960,0.0740277,67900.0,67891.0,0.07406951]
[1771650318772,0.0740277,67900.0,67892.0,0.001]
[1771650319088,0.0740277,67900.0,67891.0,0.07406951]
[1771650319584,0.0740277,67900.0,67891.0,0.07506951]
[1771650319734,0.0740277,67900.0,67891.0,0.07406951]
[1771650320344,0.00038993,67900.0,67894.0,0.05506302]
[1771650321760,0.00038993,67900.0,67894.0,0.05606302]
[1771650322373,0.00038993,67900.0,67894.0,0.05506302]
[1771650329642,0.00058993,67900.0,67894.0,0.05506302]
[1771650330284,0.00016,67910.0,67892.0,0.13104863]
[1771650330494,0.00023459,67910.0,67898.0,0.05894406]
[1771650330678,0.07362796,67909.0,67901.0,0.07363626]
[1771650330874,0.07362796,67909.0,67898.0,0.05894406]
[1771650330875,0.07362796,67909.0,67900.0,0.07363735]
[1771650331076,0.00023459,67910.0,67879.0,0.29423049]
[1771650331313,0.00023459,67910.0,67897.0,0.29456038]
[1771650331527,0.07386146,67910.0,67902.0,0.07363548]
[1771650334222,0.00023459,67910.0,67898.0,0.13258326]
[1771650334442,0.07362973,67908.0,67899.0,0.07363802]
[1771650335572,0.07398433,67908.0,67899.0,0.07363802]
[1771650336072,0.17337747,67909.0,67899.0,0.07363802]
[1771650336289,0.07362995,67908.0,67899.0,0.07363802]
[1771650336982,0.07362995,67908.0,67900.0,0.0736376]
[1771650337333,0.17337747,67909.0,67900.0,0.0736376]
[1771650338829,0.07363006,67909.0,67900.0,0.0736376]
[1771650340364,0.00055789,67910.0,67892.0,0.47150117]
[1771650340568,0.00055789,67910.0,67903.0,0.07363407]
[1771650342039,0.00055789,67910.0,67902.0,0.07363354]
[1771650342434,0.00055789,67910.0,67903.0,0.07363444]
[1771650343155,0.0002,67909.0,67903.0,0.07363444]
[1771650343318,0.0002,67909.0,67903.0,0.07332901]
[1771650344527,0.0002,67909.0,67903.0,0.07432901]
[1771650347587,0.07382899,67909.0,67903.0,0.001]
[1771650348204,0.0002,67909.0,67903.0,0.001]
[1771650348363,0.0002,67909.0,67901.0,0.07363645]
[1771650351023,0.0002,67909.0,67902.0,0.07363523]
[1771650351194,0.0002,67909.0,67899.0,0.00022]
[1771650351195,0.00055789,67910.0,67899.0,0.00022]
[1771650351413,0.0002,67914.0,67906.0,0.146872]
[1771650351997,0.0002,67914.0,67900.0,0.00016]
[1771650351998,0.0002,67914.0,67912.0,0.07362453]
[1771650352202,0.0002,67914.0,67912.0,0.14694075]
[1771650352402,0.07377673,67920.0,67913.0,0.07362351]
[1771650352403,0.00016,67920.0,67913.0,0.07362351]
[1771650354282,0.00016,67920.0,67912.0,0.07369891]
[1771650354498,0.07377626,67920.0,67912.0,0.07369891]
[1771650354625,0.07377626,67920.0,67913.0,0.001]
[1771650355631,0.00016,67920.0,67913.0,0.001]
[1771650355876,0.00016,67920.0,67912.0,0.07369891]
[1771650356089,0.00036,67920.0,67912.0,0.07369891]
[1771650356289,0.00036,67920.0,67912.0,0.07469891]
[1771650356452,0.00036,67920.0,67912.0,0.07369891]
[1771650356852,0.00036,67920.0,67913.0,0.001]
[1771650357270,0.00036,67920.0,67912.0,0.07369891]
[1771650357474,0.00036,67920.0,67912.0,0.07469891]
[1771650357853,0.00036,67920.0,67912.0,0.07369891]
[1771650359095,0.00036,67920.0,67913.0,0.001]
[1771650359309,0.07397617,67920.0,67912.0,0.07369891]
[1771650360992,0.00036,67920.0,67912.0,0.07369891]
[1771650361217,0.00036,67920.0,67915.0,0.08411029]
[1771650362072,0.00036,67920.0,67914.0,0.07362218]
[1771650362691,0.00036,67920.0,67913.0,0.0736232]
[1771650363222,0.00036,67920.0,67912.0,7.459e-05]
[1771650363572,0.0736191,67918.0,67912.0,7.459e-05]
[1771650365726,0.07361788,67919.0,67912.0,7.459e-05]
[1771650366312,0.07361854,67918.0,67912.0,7.459e-05]
[1771650370321,0.00036,67920.0,67912.0,0.08418488]
[1771650370551,0.07361723,67919.0,67912.0,0.08418488]
[1771650380077,0.07397641,67920.0,67912.0,0.08418488]
[1771650381241,0.00036,67920.0,67913.0,0.08411029]
[1771650382289,0.00036,67920.0,67913.0,0.1577335]
[1771650382590,0.00036,67920.0,67913.0,0.1587335]
[1771650384923,0.00036,67920.0,67913.0,0.1577335]
[1771650385083,0.00036,67920.0,67913.0,0.1587335]
[1771650387997,0.00036,67920.0,67913.0,0.08511029]
[1771650390455,0.00036,67920.0,67913.0,0.08411029]
[1771650394017,0.00036,67920.0,67913.0,0.15773388]
[1771650395228,0.00036,67920.0,67913.0,0.1575872]
[1771650397052,0.00036,67920.0,67913.0,0.15744053]
[1771650399270,0.07397616,67920.0,67913.0,0.08381694]
[1771650404033,0.00036,67920.0,67913.0,0.15744027]
[1771650404242,0.0003233,67923.0,67913.0,0.08396361]
[1771650404422,0.0003233,67923.0,67915.0,0.07362035]
[1771650405465,0.0003233,67923.0,67916.0,0.07362001]
[1771650407579,0.0003233,67923.0,67916.0,0.07462001]
[1771650410389,0.0003233,67923.0,67916.0,0.07362001]
[1771650410627,0.0003233,67923.0,67916.0,0.07462001]
[1771650411378,0.0003233,67923.0,67916.0,0.07462004]
[1771650411807,0.0003233,67923.0,67916.0,0.07362004]
[1771650413823,0.0003233,67923.0,67916.0,0.07462004]
[1771650413979,0.0003233,67923.0,67916.0,0.07362004]
[1771650416940,0.0003233,67923.0,67913.0,0.08418361]
[1771650417128,0.0003233,67923.0,67914.0,0.07362156]
[1771650417129,0.07393674,67923.0,67914.0,0.07362156]
[1771650420479,0.07361413,67922.0,67914.0,0.07362156]
[1771650421304,0.0003233,67923.0,67912.0,0.00029459]
[1771650421466,0.07362039,67916.0,67912.0,0.00029459]
[1771650422334,0.07362039,67916.0,67914.0,0.00022]
[1771650423763,0.07361949,67917.0,67912.0,0.00029459]
[1771650423963,0.0736186,67918.0,67912.0,0.00029459]
[1771650424732,0.07361747,67919.0,67912.0,0.00029459]
[1771650424932,0.07361747,67919.0,67912.0,0.04677869]
[1771650426643,0.0736166,67920.0,67912.0,0.04677869]
[1771650427245,0.07361714,67919.0,67912.0,0.04677869]
[1771650428149,0.09676757,67922.0,67912.0,0.00029459]
[1771650428327,0.07362039,67916.0,67912.0,0.00029459]
[1771650428539,0.07362039,67916.0,67907.0,0.00022]
[1771650428709,0.07362212,67915.0,67907.0,0.07384955]
[1771650429349,5.74e-05,67916.0,67909.0,0.07362724]
[1771650429965,5.74e-05,67916.0,67910.0,0.0736268]
[1771650430310,0.07367798,67916.0,67909.0,0.0464841]
[1771650432862,0.07362152,67915.0,67909.0,0.0464841]
[1771650433064,0.07362143,67915.0,67909.0,0.0464841]
[1771650436145,0.07367812,67916.0,67909.0,0.0464841]
[1771650436313,0.07367812,67916.0,67909.0,0.0467041]
[1771650436899,0.0002,67919.0,67909.0,0.29473036]
[1771650437142,0.0002,67919.0,67912.0,0.07362394]
[1771650437363,0.0002,67919.0,67913.0,0.0464841]
[1771650439751,0.0736206,67916.0,67913.0,0.0464841]
[1771650439948,0.0736206,67916.0,67913.0,0.001]
[1771650440157,0.0736206,67916.0,67909.0,0.02396092]
[1771650440580,0.0002,67919.0,67907.0,0.00022]
[1771650440581,0.07362562,67912.0,67907.0,0.00022]
[1771650440769,0.07362336,67914.0,67907.0,0.00022]
[1771650440970,0.07362336,67914.0,67913.0,0.001]
[1771650441397,0.07362336,67914.0,67907.0,0.00022]
[1771650442605,0.07362336,67914.0,67907.0,0.00122]
[1771650442857,0.07362336,67914.0,67907.0,0.00022]
[1771650446075,0.07362336,67914.0,67904.0,0.0736313]
[1771650446076,0.12535097,67910.0,67899.0,0.07398127]
[1771650446373,0.14850361,67910.0,67900.0,0.0740176]
[1771650446641,0.02315264,67910.0,67900.0,0.0740176]
[1771650446866,0.02315264,67910.0,67900.0,0.09775852]
[1771650447473,0.07362883,67909.0,67901.0,0.07363649]
[1771650449659,0.09677984,67910.0,67901.0,0.07363649]
[1771650450275,0.09677984,67910.0,67902.0,0.07363553]
[1771650454316,0.07362509,67912.0,67904.0,0.02374092]
[1771650454509,0.07362509,67912.0,67904.0,0.02359426]
[1771650455730,0.07362585,67911.0,67904.0,0.02359426]
[1771650457124,0.07362585,67911.0,67904.0,0.02365166]
[1771650458176,0.07362585,67911.0,67904.0,0.02387166]
[1771650464881,0.07382585,67911.0,67904.0,0.02387166]
[1771650467661,0.0736303,67907.0,67901.0,0.00022]
[1771650467867,0.07369916,67907.0,67901.0,0.00022]
[1771650468296,6.886e-05,67907.0,67901.0,0.00022]
[1771650470018,6.886e-05,67907.0,67900.0,0.07401762]
[1771650470019,0.07363359,67904.0,67900.0,0.00038]
[1771650470222,0.07363359,67904.0,67895.0,0.07386244]
[1771650470430,0.07369912,67907.0,67895.0,0.07386244]
[1771650470605,0.07363224,67906.0,67897.0,0.07386078]
[1771650471005,0.07363248,67905.0,67897.0,0.07386078]
[1771650472038,0.07363248,67905.0,67904.0,0.00022]
[1771650472193,0.07363248,67905.0,67897.0,0.07386078]
[1771650473012,0.07363248,67905.0,67897.0,0.00022]
[1771650473248,0.07363434,67904.0,67897.0,0.00022]
[1771650474635,0.07363248,67905.0,67897.0,0.00022]
[1771650474636,0.07363449,67903.0,67897.0,0.00022]
[1771650474833,0.07363337,67904.0,67897.0,0.00022]
[1771650475267,0.07363248,67905.0,67897.0,0.00022]
[1771650475467,0.07363248,67905.0,67897.0,0.07386059]
[1771650476880,0.07369949,67907.0,67895.0,0.00022]
[1771650476881,0.07363608,67902.0,67895.0,0.00022]
[1771650477103,0.07363694,67901.0,67893.0,0.25086789]
[1771650478068,0.07363694,67901.0,67893.0,0.27403661]
[1771650479556,0.07363694,67901.0,67893.0,0.09715661]
[1771650480267,0.07363774,67900.0,67893.0,0.02351202]
[1771650481527,6.886e-05,67907.0,67895.0,0.07364252]
[1771650481653,6.886e-05,67907.0,67900.0,0.02316872]
[1771650483057,0.07369901,67907.0,67900.0,0.02316872]
[1771650484465,0.07389901,67907.0,67900.0,0.02316872]
[1771650486394,0.00016,67910.0,67898.0,0.12718904]
[1771650486593,0.00016,67910.0,67902.0,0.07363541]
[1771650486594,0.07378703,67910.0,67902.0,0.07363541]
[1771650486819,0.07378703,67910.0,67902.0,0.09680413]
[1771650487463,0.07378703,67910.0,67903.0,0.02430879]
[1771650489018,0.07378703,67910.0,67901.0,0.07363648]
[1771650490974,0.0002,67907.0,67901.0,0.07363648]
[1771650501284,0.00016,67910.0,67901.0,0.02316872]
[1771650501432,0.0002,67911.0,67905.0,0.02316872]
[1771650502077,0.0002,67911.0,67901.0,0.02316872]
[1771650502436,0.0738259,67911.0,67903.0,0.0736343]
[1771650503235,0.0738259,67911.0,67904.0,0.02316872]
[1771650504560,0.0736272,67910.0,67904.0,0.02316872]
[1771650505969,0.0736272,67910.0,67902.0,0.07363553]
[1771650508190,0.07362806,67909.0,67901.0,0.07363638]
[1771650515344,0.07362806,67909.0,67901.0,0.0968051]
[1771650518100,0.0738259,67911.0,67902.0,0.07363526]
[1771650518254,0.0002,67911.0,67902.0,0.07363526]
[1771650518458,0.0002,67911.0,67901.0,0.09680326]
[1771650518459,0.07362798,67909.0,67901.0,0.09680326]
[1771650523640,0.07362798,67909.0,67901.0,0.09702326]
[1771650542847,0.07346661,67909.0,67901.0,0.09702326]
[1771650554105,0.07346661,67909.0,67901.0,0.09702326]
[1771650554524,0.0002,67910.0,67901.0,0.09702326]
[1771650554921,0.0002,67910.0,67902.0,0.07363462]
[1771650555127,0.07382739,67910.0,67902.0,0.07363462]
[1771650555752,0.0002,67910.0,67903.0,0.02481877]
[1771650556770,0.07382728,67910.0,67903.0,0.02481877]
[1771650559645,0.07362799,67909.0,67903.0,0.02481877]
[1771650567485,0.07382799,67909.0,67903.0,0.02481877]
[1771650574083,0.07382799,67909.0,67903.0,0.02503877]
[1771650577288,0.0002,67909.0,67904.0,0.02481877]
[1771650577589,0.0002,67909.0,67904.0,0.02316872]
[1771650591376,0.07382861,67909.0,67903.0,0.00022]
[1771650593108,0.07362967,67908.0,67903.0,0.00022]
[1771650594002,0.0738283,67909.0,67903.0,0.00022]
[1771650594788,0.07362915,67908.0,67903.0,0.00022]
[1771650595269,0.07382837,67909.0,67903.0,0.00022]
[1771650596068,0.0002,67909.0,67903.0,0.00022]
[1771650602860,0.0002,67909.0,67903.0,0.07385415]
[1771650606070,0.0002,67909.0,67903.0,0.00022]
[1771650617767,0.07382814,67909.0,67903.0,0.00022]
[1771650623188,0.07362963,67908.0,67903.0,0.00022]
[1771650623400,0.11161401,67908.0,67893.0,0.02486305]
[1771650623606,0.11161401,67899.0,67889.0,0.00022]
[1771650624000,0.29456556,67897.0,67889.0,0.00022]
[1771650624843,0.07364607,67894.0,67889.0,0.00022]
[1771650629506,0.07364348,67895.0,67889.0,0.00022]
[1771650632442,0.07364176,67897.0,67889.0,0.00022]
[1771650632666,0.07364176,67897.0,67889.0,0.02473975]
[1771650636086,0.07364214,67896.0,67889.0,0.02473975]
[1771650636831,0.07364317,67895.0,67889.0,0.02473975]
[1771650638016,0.07364214,67896.0,67889.0,0.02473975]
[1771650639545,0.07364117,67897.0,67889.0,0.02473975]
[1771650639743,0.07364117,67897.0,67889.0,0.09838932]
[1771650640113,0.07364117,67897.0,67889.0,0.02473975]
[1771650640904,0.07364036,67898.0,67889.0,0.09838896]
[1771650641122,0.07364107,67897.0,67889.0,0.02473975]
[1771650641489,0.07364234,67896.0,67889.0,0.02473975]
[1771650643546,0.11363314,67902.0,67889.0,0.02473975]
[1771650643547,0.29451611,67908.0,67891.0,0.2945894]
[1771650643790,0.07363488,67903.0,67896.0,0.02484484]
[1771650645741,0.07363558,67902.0,67896.0,0.02484484]
[1771650645934,0.07363558,67902.0,67894.0,0.073644]
[1771650647034,0.07363469,67903.0,67895.0,0.0736431]
[1771650648647,0.07363469,67903.0,67895.0,0.07349637]
[1771650648813,0.07363469,67903.0,67895.0,0.07334966]
[1771650649009,0.07363469,67903.0,67895.0,0.07320296]
[1771650649211,0.07363376,67904.0,67895.0,0.07320296]
[1771650649451,0.18726417,67908.0,67898.0,0.07363905]
[1771650649630,0.07363098,67907.0,67897.0,0.07364095]
[1771650650188,0.07363155,67906.0,67898.0,0.0736394]
[1771650650758,0.07363155,67906.0,67898.0,0.0734928]
[1771650650987,0.0002,67903.0,67898.0,0.09833764]
[1771650651183,0.0002,67903.0,67899.0,0.02484484]
[1771650651589,0.0002,67903.0,67900.0,0.02484484]
[1771650652581,0.0002,67903.0,67900.0,0.02469815]
[1771650653100,0.0002,67903.0,67900.0,0.02455146]
[1771650653300,0.0002,67903.0,67900.0,0.02440479]
[1771650659031,0.0002,67903.0,67898.0,0.0734928]
[1771650659235,0.0002,67903.0,67898.0,0.02484484]
[1771650659437,0.0002,67903.0,67896.0,0.07364175]
[1771650660555,0.07383511,67903.0,67894.0,0.02484484]
[1771650660754,0.07363629,67902.0,67894.0,0.09848904]
[1771650661043,0.07363629,67902.0,67894.0,0.09834242]
[1771650663779,0.07363629,67902.0,67896.0,0.00022]
[1771650664272,0.0002,67903.0,67896.0,0.00022]
[1771650664473,0.0002,67903.0,67897.0,0.07364091]
[1771650666685,0.11788237,67907.0,67896.0,0.00022]
[1771650667093,0.0736366,67902.0,67896.0,0.00022]
[1771650667264,0.07363484,67903.0,67896.0,0.00022]
[1771650667678,0.07382855,67909.0,67896.0,0.00022]
[1771650668002,0.0736298,67908.0,67899.0,0.07349173]
[1771650669965,0.0002,67903.0,67899.0,0.0963778]
[1771650672755,0.0002,67903.0,67899.0,0.02288607]
[1771650672958,0.0002,67903.0,67898.0,0.07363946]
[1771650674031,0.0002,67903.0,67896.0,0.07386125]
[1771650674196,0.0002,67903.0,67896.0,0.00022]
[1771650675582,0.0736356,67902.0,67896.0,0.00022]
[1771650675787,0.07383457,67903.0,67896.0,0.00022]
[1771650682698,0.0002,67903.0,67894.0,0.00038993]
[1771650683469,0.0002,67903.0,67894.0,0.07403328]
[1771650684153,0.07383479,67903.0,67894.0,0.07403328]
[1771650685023,0.07383479,67903.0,67895.0,0.07364309]
[1771650685704,0.00424923,67908.0,67894.0,0.00038993]
[1771650685868,0.18807471,67909.0,67901.0,0.07363575]
[1771650686215,0.14744233,67908.0,67900.0,0.07363746]
[1771650686413,0.14744233,67908.0,67900.0,0.07290475]
[1771650686814,0.22107153,67908.0,67900.0,0.07290475]
[1771650687022,0.14744233,67907.0,67900.0,0.07290475]
[1771650687315,0.14744233,67906.0,67900.0,0.07290475]
[1771650687533,0.0736292,67908.0,67900.0,0.07290475]
[1771650689053,0.0738292,67908.0,67900.0,0.07290475]
[1771650690431,0.0738292,67908.0,67899.0,0.07363839]
[1771650692120,0.22127152,67908.0,67899.0,0.07363839]
[1771650694888,0.07363039,67907.0,67898.0,0.09652551]
[1771650695193,0.22107271,67907.0,67898.0,0.09652551]
[1771650695401,0.14744232,67906.0,67898.0,0.09652551]
[1771650695600,0.0736316,67906.0,67898.0,0.09652551]
[1771650696104,0.22107288,67906.0,67898.0,0.09652551]
[1771650696303,0.0736316,67906.0,67898.0,0.09652551]
[1771650696488,0.22107262,67906.0,67898.0,0.09652551]
[1771650696685,0.0736316,67906.0,67898.0,0.09652551]
[1771650696886,0.07363039,67907.0,67898.0,0.09652551]
[1771650697987,0.07363039,67907.0,67898.0,0.09623241]
[1771650698476,0.07363039,67907.0,67899.0,0.07363861]
[1771650698674,0.07363039,67907.0,67899.0,0.07349208]
[1771650699513,0.07363039,67907.0,67898.0,0.09652556]
[1771650699716,0.22107148,67907.0,67898.0,0.09652556]
[1771650700822,0.22107148,67907.0,67899.0,0.0736387]
[1771650701008,0.22107148,67907.0,67899.0,0.07349218]
[1771650701784,0.22127148,67907.0,67899.0,0.07349218]
[1771650704180,0.22127148,67907.0,67898.0,0.09674562]
[1771650712536,0.07363164,67906.0,67898.0,0.09674562]